bitfinex/quotes_SOLUSD_20250306
["timestamp","ask_amount","ask_price","bid_price","bid_amount"]
[1741290790028,112.64233924,145.05,144.97,89.3]
[1741290790227,28.83211894,145.03,144.95,6.4828]
[1741290790536,30.64299732,145.02,144.96,28.83211894]
[1741290790740,82.0,145.01,144.97,28.83211894]
[1741290791046,110.83211894,145.01,144.96,312.0]
[1741290791343,82.0,145.0,144.96,28.83211894]
[1741290791551,82.0,145.0,144.97,28.83211894]
[1741290792127,82.0,145.03,144.99,28.83211894]
[1741290792629,82.0,145.05,145.02,28.83211894]
[1741290793136,28.83211894,145.03,144.93,88.9998]
[1741290793340,83.81088453,145.02,144.97,28.83211894]
[1741290793537,82.0,145.02,145.01,28.83211894]
[1741290793738,82.0,145.05,145.01,28.83211894]
[1741290794031,82.0,145.05,144.93,236.5495]
[1741290794032,83.81039242,145.04,144.94,0.14216157]
[1741290794259,110.83211894,145.03,144.97,28.83211894]
[1741290794557,83.81087572,145.02,144.97,28.83211894]
[1741290794960,82.0,145.01,144.96,28.83211894]
[1741290795333,112.64306897,145.0,144.91,88.4087]
[1741290795551,88.897,144.99,144.94,28.83211894]
[1741290795771,23.3,145.02,144.91,95.7087]
[1741290795772,82.0,144.98,144.96,28.83211894]
[1741290796058,82.0,144.98,144.97,28.83211894]
[1741290796233,88.8961,145.01,144.97,28.83211894]
[1741290796435,82.0,145.01,144.98,28.83211894]
[1741290796649,1.81074766,145.0,144.92,82.24216157]
[1741290796837,112.6428666,145.0,144.94,28.83211894]
[1741290797863,134.97161894,144.99,144.93,28.83211894]
[1741290798036,1.81126792,144.98,144.94,28.83211894]
[1741290798363,1.81126792,144.98,144.95,28.83211894]
[1741290798535,82.0,144.97,144.95,28.83211894]
[1741290799339,82.0,144.97,144.93,28.83211894]
[1741290799545,6.8984,144.96,144.94,28.83211894]
[1741290799958,6.8984,144.96,144.91,312.0]
[1741290800340,82.0,144.97,144.91,312.0]
[1741290800548,88.8981,144.97,144.95,28.83211894]
[1741290801860,88.8981,144.97,144.93,28.83211894]
[1741290802241,88.8981,144.97,144.94,28.83211894]
[1741290802445,88.8981,144.97,144.95,28.83211894]
[1741290802855,88.8981,144.97,144.94,28.83211894]
[1741290803061,88.8981,144.97,144.94,28.86511894]
[1741290803358,82.0,144.97,144.94,28.86511894]
[1741290803541,82.0,144.97,144.96,28.83211894]
[1741290804246,82.03,145.01,144.96,35.87248051]
[1741290804446,82.03,145.01,144.99,28.83211894]
[1741290804644,82.03,145.01,145.0,28.83211894]
[1741290805052,82.03,145.01,144.99,28.83211894]
[1741290805364,0.03,145.01,145.0,28.97428051]
[1741290805561,0.03,145.01,145.0,28.83211894]
[1741290805944,0.03,145.01,144.97,110.93211894]
[1741290806143,0.03,145.01,145.0,28.83211894]
[1741290806547,0.03,145.01,144.97,312.0]
[1741290806740,82.0,145.0,144.98,28.83211894]
[1741290806938,82.0,145.0,144.96,7.22]
[1741290807144,82.0,145.0,144.97,28.83211894]
[1741290807342,82.0,145.0,144.98,28.83211894]
[1741290808245,82.0,145.0,144.99,28.83211894]
[1741290808437,0.03,145.01,144.99,28.83211894]
[1741290808638,0.03,145.01,145.0,28.83211894]
[1741290809269,6.926,145.01,144.95,0.14216157]
[1741290809644,8.73695265,145.01,144.97,28.83211894]
[1741290810251,82.0,145.0,144.97,28.83211894]
[1741290810655,82.0,145.0,144.96,28.83211894]
[1741290810855,82.0,145.0,144.97,28.83211894]
[1741290811175,82.0,145.0,144.96,28.83211894]
[1741290811364,0.28432314,144.98,144.94,0.033]
[1741290811572,112.64372412,144.97,144.94,0.033]
[1741290811749,0.28432314,144.94,144.87,0.033]
[1741290811955,28.83211894,144.91,144.87,0.033]
[1741290812155,83.81221988,144.9,144.87,0.033]
[1741290812888,82.0,144.89,144.87,0.033]
[1741290813049,82.0,144.88,144.87,0.033]
[1741290813875,88.9022,144.88,144.87,0.033]
[1741290814084,82.0,144.88,144.87,0.033]
[1741290814960,82.0,144.88,144.87,28.86511894]
[1741290815161,85.41978319,144.92,144.87,28.86511894]
[1741290815378,82.0,144.91,144.88,28.83211894]
[1741290815685,88.8998,144.93,144.9,28.83211894]
[1741290815887,88.8998,144.93,144.89,28.83211894]
[1741290816384,88.8998,144.93,144.88,28.83211894]
[1741290816591,119.54382481,144.93,144.87,28.86511894]
[1741290816780,82.0,144.92,144.87,28.86511894]
[1741290817288,82.0,144.92,144.88,28.83211894]
[1741290817479,88.8995,144.94,144.89,28.83211894]
[1741290817660,82.0,144.94,144.91,28.83211894]
[1741290817863,88.8995,144.94,144.88,0.14216157]
[1741290818067,88.8999,144.93,144.89,28.83211894]
[1741290818669,88.8999,144.93,144.9,28.83211894]
[1741290818887,88.8999,144.93,144.89,28.83211894]
[1741290819099,82.28432314,144.92,144.87,0.033]
[1741290819285,28.83211894,144.9,144.87,0.033]
[1741290819593,83.8123354,144.89,144.87,0.033]
[1741290819886,82.0,144.89,144.87,0.033]
[1741290820297,82.0,144.91,144.88,28.83211894]
[1741290820588,82.0,144.91,144.9,28.83211894]
[1741290820886,88.9008,144.91,144.87,0.17516157]
[1741290821095,88.9008,144.91,144.87,28.86511894]
[1741290821771,88.9008,144.91,144.88,28.83211894]
[1741290821973,82.0,144.91,144.88,28.83211894]
[1741290822293,88.9008,144.91,144.87,28.86511894]
[1741290822481,88.9008,144.91,144.87,0.033]
[1741290822688,88.9008,144.91,144.87,28.86511894]
[1741290824169,88.9008,144.91,144.87,0.033]
[1741290824475,88.9008,144.91,144.87,28.86511894]
[1741290825094,82.0,144.91,144.88,28.83211894]
[1741290825299,82.0,144.91,144.9,28.83211894]
[1741290825473,6.9003,144.92,144.9,28.83211894]
[1741290825673,6.9003,144.92,144.89,28.83211894]
[1741290825998,6.9003,144.92,144.87,28.86511894]
[1741290826185,82.0,144.91,144.88,28.83211894]
[1741290826385,82.0,144.91,144.89,28.83211894]
[1741290826772,82.0,144.91,144.88,28.83211894]
[1741290827387,82.0,144.91,144.87,28.86511894]
[1741290827589,82.0,144.91,144.88,28.83211894]
[1741290827989,82.0,144.91,144.89,28.83211894]
[1741290828185,82.0,144.93,144.9,28.83211894]
[1741290828385,82.0,144.93,144.87,6.9357]
[1741290828386,82.0,144.93,144.92,28.83211894]
[1741290829897,82.0,144.93,144.9,312.0]
[1741290829898,88.8999,144.93,144.9,312.0]
[1741290830098,88.8999,144.93,144.9,340.83211894]
[1741290830272,88.8999,144.93,144.9,312.0]
[1741290830598,88.8999,144.93,144.88,28.83211894]
[1741290830784,82.0,144.92,144.87,28.86511894]
[1741290831406,82.0,144.92,144.88,28.83211894]
[1741290832101,82.0,144.92,144.89,28.83211894]
[1741290832295,6.8999,144.93,144.9,28.83211894]
[1741290832493,6.8999,144.93,144.91,28.83211894]
[1741290833301,6.8999,144.93,144.87,0.17516157]
[1741290833503,88.8999,144.93,144.89,28.83211894]
[1741290833692,134.98171894,144.93,144.87,0.033]
[1741290833891,134.98171894,144.93,144.87,28.86511894]
[1741290834113,112.64413019,144.92,144.87,0.033]
[1741290834406,6.9013,144.9,144.87,0.033]
[1741290834608,82.0,144.89,144.87,0.033]
[1741290836506,82.0,144.89,144.87,28.86511894]
[1741290836710,88.9017,144.89,144.87,28.86511894]
[1741290836883,88.9017,144.89,144.87,0.033]
[1741290837702,1.81234813,144.88,144.87,0.033]
[1741290838487,6.9022,144.88,144.87,0.033]
[1741290838922,35.73431894,144.88,144.87,0.033]
[1741290839225,6.9022,144.88,144.87,0.033]
[1741290840705,6.9019,144.89,144.87,0.033]
[1741290841199,37.54618672,144.89,144.87,0.033]
[1741290841528,28.83211894,144.88,144.87,0.033]
[1741290842210,36.01864208,144.88,144.87,0.033]
[1741290842517,35.73431894,144.88,144.87,0.033]
[1741290842688,37.54683702,144.88,144.87,0.033]
[1741290842892,37.83116016,144.88,144.87,0.033]
[1741290843124,8.99904122,144.88,144.87,0.033]
[1741290843423,37.83116016,144.88,144.87,0.033]
[1741290843725,0.28432314,144.87,144.81,0.033]
[1741290843893,30.64501599,144.86,144.81,0.033]
[1741290844316,6.9036,144.85,144.81,0.033]
[1741290844523,35.73571894,144.85,144.81,0.033]
[1741290844730,52.99491894,144.85,144.81,0.033]
[1741290845021,54.80777325,144.85,144.81,0.033]
[1741290845196,25.97565431,144.85,144.81,0.033]
[1741290845397,28.83211894,144.83,144.81,0.033]
[1741290845624,28.83211894,144.83,144.79,0.033]
[1741290845625,20.0,144.8,144.79,0.033]
[1741290845829,29.11644208,144.8,144.73,0.033]
[1741290845997,28.83211894,144.78,144.73,0.033]
[1741290846192,112.93021841,144.79,144.73,28.86511894]
[1741290846506,88.9054,144.82,144.78,28.83211894]
[1741290847121,125.94377841,144.84,144.79,28.83211894]
[1741290847333,117.73671894,144.84,144.79,28.83211894]
[1741290847629,88.9046,144.84,144.79,28.83211894]
[1741290848134,88.9046,144.84,144.8,28.83211894]
[1741290848299,82.0,144.84,144.8,28.83211894]
[1741290848493,88.9043,144.84,144.79,312.0]
[1741290848697,88.9043,144.84,144.79,340.83211894]
[1741290848930,88.9043,144.84,144.75,6.9083]
[1741290848931,28.83211894,144.83,144.75,0.14216157]
[1741290849096,110.83211894,144.82,144.76,28.83211894]
[1741290849293,82.0,144.82,144.77,28.83211894]
[1741290849520,1.81315438,144.83,144.79,28.83211894]
[1741290849732,99.42762947,144.86,144.83,0.14216157]
[1741290850034,99.42762947,144.86,144.85,28.83211894]
[1741290850398,99.42762947,144.86,144.82,0.14216157]
[1741290850605,106.33082947,144.86,144.81,0.14216157]
[1741290850804,106.33082947,144.86,144.81,28.97428051]
[1741290851220,99.42762947,144.86,144.82,28.83211894]
[1741290851523,82.0,144.86,144.82,28.83211894]
[1741290851925,82.0,144.86,144.83,28.97428051]
[1741290852121,88.9004,144.92,144.85,28.97428051]
[1741290852303,6.9013,144.9,144.85,28.83211894]
[1741290852633,35.73341894,144.9,144.84,28.83211894]
[1741290852934,20.0,144.85,144.82,312.0]
[1741290853226,28.83211894,144.83,144.78,0.033]
[1741290853539,112.64526276,144.83,144.78,0.033]
[1741290853733,28.83211894,144.8,144.78,0.033]
[1741290854037,28.83211894,144.79,144.78,0.033]
[1741290854224,30.64565755,144.79,144.78,0.033]
[1741290854419,39.46888069,144.79,144.78,0.033]
[1741290854736,46.56888069,144.79,144.78,0.033]
[1741290856232,46.56888069,144.79,144.73,0.033]
[1741290856233,20.0,144.76,144.73,0.033]
[1741290856407,35.74101894,144.74,144.73,0.033]
[1741290857232,36.02534208,144.74,144.73,0.033]
[1741290857440,43.10534208,144.74,144.73,0.033]
[1741290857745,43.10534208,144.74,144.72,0.033]
[1741290857917,30.93107364,144.73,144.72,0.033]
[1741290858122,1.6556,144.72,144.69,0.033]
[1741290858327,29.11644208,144.7,144.69,0.033]
[1741290858512,36.02724208,144.7,144.69,0.0001]
[1741290859639,6.60382314,144.69,144.68,0.0001]
[1741290859946,44.33115008,144.69,144.68,0.0001]
[1741290860123,73.16326902,144.69,144.68,0.0001]
[1741290860525,80.07456902,144.69,144.68,0.0001]
[1741290861563,51.24245008,144.69,144.68,0.0001]
[1741290861756,42.82341894,144.69,144.68,0.0001]
[1741290861953,44.63843902,144.69,144.68,0.0001]
[1741290862565,15.80632008,144.69,144.68,0.0001]
[1741290862874,44.63843902,144.69,144.68,0.0001]
[1741290863165,73.7548811,144.69,144.68,0.0001]
[1741290863376,44.92276216,144.69,144.68,0.0001]
[1741290863662,15.80632008,144.69,144.68,0.0001]
[1741290863870,44.63843902,144.69,144.68,0.0001]
[1741290864266,15.80632008,144.69,144.68,0.0001]
[1741290864559,44.63843902,144.69,144.68,0.0001]
[1741290864762,6.9113,144.69,144.68,0.0001]
[1741290865345,6.911,144.7,144.68,0.0001]
[1741290866042,30.646792,144.69,144.68,0.0001]
[1741290866455,30.93111514,144.69,144.68,0.0001]
[1741290866670,20.0,144.66,144.65,0.0001]
[1741290866875,30.93195441,144.66,144.65,0.0001]
[1741290867187,30.64763127,144.66,144.65,0.0001]
[1741290867559,7.06,144.67,144.65,0.0001]
[1741290867887,35.89211894,144.67,144.65,0.0001]
[1741290868052,7.06,144.67,144.65,0.0001]
[1741290868372,24.1896,144.69,144.65,0.0001]
[1741290868752,24.1896,144.69,144.65,28.83221894]
[1741290868753,6.9113,144.69,144.65,28.83221894]
[1741290868959,6.9113,144.69,144.66,28.83211894]
[1741290870974,54.15961894,144.72,144.66,28.83211894]
[1741290871181,54.83281124,144.71,144.65,28.83221894]
[1741290871485,108.0006923,144.71,144.66,28.83211894]
[1741290871681,82.0,144.7,144.66,28.83211894]
[1741290871989,6.9103,144.71,144.67,28.83211894]
[1741290873262,82.0,144.72,144.7,28.83211894]
[1741290873455,82.0,144.74,144.71,28.83211894]
[1741290873766,82.0,144.78,144.73,28.83211894]
[1741290873961,82.0,144.78,144.73,28.97428051]
[1741290874163,82.0,144.78,144.73,0.14216157]
[1741290874474,0.033,144.79,144.77,28.83211894]
[1741290874684,0.033,144.79,144.78,28.83211894]
[1741290875057,0.033,144.79,144.77,28.83211894]
[1741290875588,0.033,144.79,144.75,28.83211894]
[1741290875973,28.86511894,144.79,144.74,28.83211894]
[1741290876155,110.83211894,144.78,144.72,28.83211894]
[1741290876585,28.83211894,144.76,144.71,7.04]
[1741290876888,28.83211894,144.75,144.69,28.83211894]
[1741290877070,28.83211894,144.74,144.68,28.83211894]
[1741290877271,110.83211894,144.75,144.69,28.83211894]
[1741290877473,35.74101894,144.74,144.68,0.14216157]
[1741290877801,110.83211894,144.73,144.67,35.85211894]
[1741290878090,110.83211894,144.73,144.68,28.83211894]
[1741290878257,82.0,144.73,144.69,28.83211894]
[1741290878680,82.0,144.73,144.71,28.83211894]
[1741290878888,82.0,144.73,144.67,7.02]
[1741290878889,6.9089,144.74,144.7,28.83211894]
[1741290879478,110.83211894,144.76,144.72,28.83211894]
[1741290879479,88.4084,144.76,144.72,28.83211894]
[1741290880081,88.4084,144.76,144.71,28.83211894]
[1741290880305,119.0542879,144.76,144.7,28.83211894]
[1741290880468,105.6783,144.76,144.7,28.83211894]
[1741290880668,134.51041894,144.76,144.71,28.83211894]
[1741290881695,88.4084,144.76,144.71,28.83211894]
[1741290881893,6.9075,144.77,144.74,28.83211894]
[1741290882299,6.9075,144.77,144.69,1.13823329]
[1741290882508,28.83211894,144.75,144.7,0.14216157]
[1741290883007,28.83211894,144.76,144.7,28.97428051]
[1741290883187,28.83211894,144.74,144.68,28.83211894]
[1741290883394,112.14634727,144.73,144.67,28.83211894]
[1741290883590,35.74191894,144.72,144.67,28.83211894]
[1741290883788,53.01661894,144.72,144.66,28.83211894]
[1741290884479,53.01661894,144.72,144.67,28.83211894]
[1741290884686,53.01661894,144.72,144.67,340.83211894]
[1741290885723,17.2747,144.72,144.68,28.83211894]
[1741290886014,17.2747,144.72,144.67,340.83211894]
[1741290886507,35.74151894,144.73,144.68,28.83211894]
[1741290886809,30.64638238,144.72,144.67,312.0]
[1741290886980,28.83211894,144.71,144.67,312.0]
[1741290887492,24.1829,144.73,144.67,28.83211894]
[1741290887688,24.1829,144.73,144.68,28.83211894]
[1741290888079,24.1829,144.73,144.67,28.83211894]
[1741290888080,53.01501894,144.73,144.67,28.83211894]
[1741290888912,6.9094,144.73,144.68,28.83211894]
[1741290889208,35.74151894,144.73,144.67,28.83211894]
[1741290889624,6.9094,144.73,144.68,28.83211894]
[1741290890117,35.74151894,144.73,144.67,28.83211894]
[1741290890497,6.9094,144.73,144.68,28.83211894]
[1741290890896,6.9094,144.73,144.69,28.83211894]
[1741290891107,28.83211894,144.72,144.65,0.14226157]
[1741290891403,28.83211894,144.72,144.67,0.14216157]
[1741290891599,28.83211894,144.71,144.65,28.97438051]
[1741290891818,30.64655506,144.72,144.66,28.83211894]
[1741290892011,28.83211894,144.69,144.65,0.0001]
[1741290892190,28.83211894,144.67,144.65,0.0001]
[1741290892850,30.64658327,144.68,144.65,0.0001]
[1741290892993,28.83211894,144.67,144.65,0.0001]
[1741290893192,28.83211894,144.66,144.65,0.0001]
[1741290894018,28.83211894,144.66,144.6,0.033]
[1741290894019,30.63104208,144.66,144.6,0.033]
[1741290894218,28.83211894,144.63,144.6,0.033]
[1741290894397,28.83211894,144.62,144.6,0.033]
[1741290894813,28.83211894,144.61,144.6,0.033]
[1741290895306,28.83211894,144.61,144.56,45.87874542]
[1741290895487,28.83211894,144.61,144.56,28.83211894]
[1741290895886,29.11644208,144.62,144.56,28.83211894]
[1741290896286,6.9151,144.61,144.56,28.83211894]
[1741290896707,6.9148,144.62,144.58,28.83211894]
[1741290896924,6.9148,144.62,144.58,0.14216157]
[1741290897100,6.9148,144.62,144.58,28.97428051]
[1741290897320,6.9148,144.62,144.58,0.14216157]
[1741290897529,6.9148,144.62,144.59,0.14216157]
[1741290898329,6.9133,144.65,144.61,28.97428051]
[1741290898752,6.9133,144.65,144.61,0.14216157]
[1741290899328,6.9133,144.65,144.6,28.97428051]
[1741290899542,6.9133,144.65,144.61,28.83211894]
[1741290900025,30.34671894,144.66,144.6,0.14216157]
[1741290900026,1.5146,144.66,144.62,28.83211894]
[1741290900227,6.9129,144.66,144.62,28.83211894]
[1741290900752,53.02691894,144.66,144.61,0.14216157]
[1741290900950,6.9129,144.66,144.62,28.97428051]
[1741290901246,6.911,144.7,144.65,28.97428051]
[1741290901629,53.02021894,144.7,144.65,0.14216157]
[1741290901946,24.1881,144.7,144.65,28.97428051]
[1741290902115,35.74311894,144.7,144.64,28.83211894]
[1741290902318,20.0,144.65,144.59,6.92]
[1741290902654,28.83211894,144.63,144.57,28.83211894]
[1741290902825,28.83211894,144.62,144.57,28.83211894]
[1741290903026,110.33211894,144.63,144.58,0.14216157]
[1741290903346,28.83211894,144.62,144.58,0.14216157]
[1741290903850,110.33211894,144.63,144.58,0.14216157]
[1741290904214,6.9146,144.62,144.58,0.14216157]
[1741290904426,110.33211894,144.61,144.55,35.78511894]
[1741290904663,28.83211894,144.6,144.55,28.86511894]
[1741290904841,81.5,144.61,144.58,0.14216157]
[1741290905022,6.9142,144.63,144.6,0.14216157]
[1741290905623,53.03171894,144.63,144.57,28.83211894]
[1741290905845,53.03171894,144.63,144.58,28.97428051]
[1741290905846,88.4142,144.63,144.58,28.97428051]
[1741290906820,28.83211894,144.62,144.57,0.14216157]
[1741290907051,105.6996,144.63,144.57,28.97428051]
[1741290907353,28.83211894,144.62,144.57,28.97428051]
[1741290907555,105.6996,144.63,144.58,28.83211894]
[1741290907928,88.4142,144.63,144.59,28.83211894]
[1741290908128,88.4142,144.63,144.6,28.83211894]
[1741290908329,103.0755,144.65,144.6,28.83211894]
[1741290908523,6.9127,144.66,144.62,0.14216157]
[1741290908729,24.1946,144.66,144.57,219.3285]
[1741290908920,81.5,144.65,144.6,28.83211894]
[1741290909142,110.33211894,144.65,144.6,28.83211894]
[1741290910057,110.33211894,144.65,144.59,28.83211894]
[1741290910355,112.14755638,144.65,144.59,28.83211894]
[1741290910551,28.83211894,144.63,144.58,0.14216157]
[1741290910719,28.83211894,144.63,144.57,28.83211894]
[1741290910924,28.83211894,144.62,144.56,340.86211894]
[1741290911137,28.83211894,144.62,144.57,0.14216157]
[1741290911353,110.33211894,144.63,144.57,28.97428051]
[1741290911776,81.5,144.63,144.59,28.83211894]
[1741290912474,6.9146,144.62,144.59,28.83211894]
[1741290912658,88.4143,144.63,144.6,28.83211894]
[1741290912860,6.9143,144.63,144.6,28.83211894]
[1741290913253,6.9143,144.63,144.61,0.14216157]
[1741290913576,81.5,144.65,144.61,28.83211894]
[1741290913943,88.4133,144.65,144.57,82.1]
[1741290914278,28.83211894,144.64,144.58,28.97428051]
[1741290914568,6.9141,144.63,144.59,0.14216157]
[1741290914774,6.9141,144.63,144.57,82.1]
[1741290914775,28.83211894,144.62,144.57,82.1]
[1741290914955,28.83211894,144.58,144.56,0.03]
[1741290915347,48.83211894,144.57,144.56,0.03]
[1741290915679,20.0,144.57,144.56,0.03]
[1741290915876,48.83211894,144.57,144.56,0.03]
[1741290916046,20.0,144.57,144.56,0.03]
[1741290916563,26.917,144.57,144.56,0.03]
[1741290917077,26.917,144.57,144.55,0.033]
[1741290917078,137.24911894,144.57,144.55,0.033]
[1741290917252,20.28432314,144.53,144.44,82.133]
[1741290917573,20.28432314,144.53,144.44,110.96511894]
[1741290917574,48.83211894,144.5,144.44,110.96511894]
[1741290917759,48.83211894,144.5,144.45,28.83211894]
[1741290917760,20.0,144.5,144.45,28.83211894]
[1741290917962,110.33211894,144.52,144.46,28.83211894]
[1741290918555,110.33211894,144.52,144.44,0.033]
[1741290918556,35.75201894,144.51,144.44,0.033]
[1741290918760,35.75201894,144.51,144.45,28.83211894]
[1741290918973,6.9199,144.51,144.46,28.83211894]
[1741290919181,35.75201894,144.51,144.47,0.14216157]
[1741290919379,28.83211894,144.49,144.44,0.033]
[1741290919553,28.83211894,144.48,144.44,0.033]
[1741290919751,28.83211894,144.45,144.44,0.033]
[1741290920248,36.72931894,144.45,144.41,0.03]
[1741290920461,20.0,144.42,144.41,0.03]
[1741290920669,88.9234,144.44,144.41,0.03]
[1741290920878,43.65211894,144.45,144.41,0.17216157]
[1741290921054,43.65211894,144.45,144.41,0.03]
[1741290921379,28.83211894,144.44,144.41,0.03]
[1741290922081,125.65211894,144.45,144.41,0.03]
[1741290922780,90.5761,144.45,144.41,0.03]
[1741290923187,90.5761,144.45,144.41,0.17216157]
[1741290923378,88.9228,144.45,144.41,0.17216157]
[1741290923677,117.75491894,144.45,144.41,0.17216157]
[1741290924053,28.83211894,144.44,144.41,0.03]
[1741290924256,106.2298,144.45,144.41,0.03]
[1741290924457,88.9228,144.45,144.41,0.17216157]
[1741290924661,117.75491894,144.45,144.41,0.17216157]
[1741290925151,135.06191894,144.45,144.41,0.03]
[1741290925366,28.83211894,144.43,144.41,0.03]
[1741290925647,117.75491894,144.45,144.41,0.17216157]
[1741290925861,88.9228,144.45,144.41,0.17216157]
[1741290926351,135.06191894,144.45,144.41,0.03]
[1741290926573,28.83211894,144.44,144.41,0.03]
[1741290926769,6.9232,144.44,144.41,0.03]
[1741290927353,35.75531894,144.44,144.41,0.03]
[1741290927562,53.06351894,144.44,144.41,0.03]
[1741290927768,28.83211894,144.43,144.41,0.03]
[1741290927968,110.83211894,144.42,144.41,0.0001]
[1741290928169,30.93471718,144.42,144.41,0.0001]
[1741290928568,37.57459404,144.42,144.41,0.0001]
[1741290928771,6.9242,144.42,144.41,0.0001]
[1741290929674,6.9238,144.43,144.41,0.0001]
[1741290930483,6.9228,144.45,144.41,28.97438051]
[1741290931086,6.9228,144.45,144.41,340.97438051]
[1741290931585,28.83211894,144.44,144.41,0.0001]
[1741290932085,53.06191894,144.45,144.41,0.0001]
[1741290932383,28.83211894,144.44,144.41,0.0001]
[1741290932584,28.83211894,144.43,144.41,0.0001]
[1741290932883,6.9242,144.42,144.41,0.0001]
[1741290933185,117.75631894,144.42,144.41,0.0001]
[1741290933483,88.9242,144.42,144.41,0.0001]
[1741290933883,82.0,144.42,144.41,0.0001]
[1741290935988,88.9242,144.42,144.41,0.0001]
[1741290937000,6.9242,144.42,144.41,0.0001]
[1741290938896,6.9237,144.43,144.41,0.0001]
[1741290939203,110.83211894,144.42,144.41,0.0001]
[1741290939389,82.0,144.42,144.41,0.0001]
[1741290940606,110.83211894,144.42,144.41,0.0001]
[1741290940800,117.75631894,144.42,144.41,0.0001]
[1741290940999,35.75631894,144.42,144.4,0.0001]
[1741290941197,29.11644208,144.41,144.4,0.0001]
[1741290941399,30.93480152,144.41,144.4,0.0001]
[1741290942095,6.9242,144.42,144.4,0.0001]
[1741290942912,35.75631894,144.42,144.4,0.0001]
[1741290943810,117.75631894,144.42,144.4,0.0001]
[1741290943986,120.78976851,144.41,144.36,0.033]
[1741290944186,0.28432314,144.39,144.32,0.03]
[1741290944492,112.65102843,144.38,144.32,28.86211894]
[1741290944696,82.0,144.38,144.34,28.83211894]
[1741290944911,82.0,144.38,144.33,28.83211894]
[1741290945112,6.9266,144.37,144.32,29.00428051]
[1741290945318,0.28432314,144.32,144.31,0.033]
[1741290945614,20.0,144.32,144.31,0.033]
[1741290946314,49.11644208,144.32,144.26,0.37482334]
[1741290946482,0.28432314,144.3,144.26,0.37482334]
[1741290946683,29.11644208,144.3,144.26,0.37482334]
[1741290947111,6.9304,144.29,144.26,0.37482334]
[1741290947313,54.90845856,144.29,144.26,0.37482334]
[1741290947490,28.83211894,144.28,144.26,0.37482334]
[1741290948320,30.93653752,144.27,144.26,0.37482334]
[1741290948606,54.90881438,144.29,144.26,0.37482334]
[1741290950620,28.83211894,144.28,144.26,0.37482334]
[1741290951008,28.83211894,144.27,144.26,0.37482334]
[1741290951203,29.11644208,144.27,144.26,0.37482334]
[1741290951606,30.71454208,144.27,144.26,0.37482334]
[1741290952201,29.11644208,144.27,144.26,0.37482334]
[1741290952622,36.04784208,144.27,144.26,0.37482334]
[1741290953700,36.04784208,144.27,144.26,2.334e-05]
[1741290953895,64.87996102,144.27,144.26,2.334e-05]
[1741290954224,36.04784208,144.27,144.26,2.334e-05]
[1741290954925,35.76351894,144.27,144.26,2.334e-05]
[1741290955519,36.04784208,144.27,144.26,2.334e-05]
[1741290955717,35.76351894,144.27,144.26,2.334e-05]
[1741290959323,35.76351894,144.27,144.25,0.03]
[1741290959324,0.28432314,144.26,144.25,2.334e-05]
[1741290959526,30.93715208,144.26,144.25,2.334e-05]
[1741290960443,29.11644208,144.26,144.25,2.334e-05]
[1741290961314,53.37814208,144.26,144.2,8.2799]
[1741290961502,28.83211894,144.23,144.2,8.2799]
[1741290962320,28.83211894,144.22,144.2,8.2799]
[1741290962504,0.28432314,144.25,144.2,8.2799]
[1741290962505,28.83211894,144.21,144.2,8.2799]
[1741290962905,1.82056626,144.24,144.2,8.2799]
[1741290963138,28.83211894,144.23,144.2,8.2799]
[1741290963339,6.9319,144.26,144.22,28.83211894]
[1741290963505,6.9319,144.26,144.23,28.83211894]
[1741290963914,28.83211894,144.27,144.23,0.14216157]
[1741290964415,28.83211894,144.27,144.22,28.97428051]
[1741290964807,28.83211894,144.26,144.22,0.14216157]
[1741290965417,6.9324,144.25,144.22,0.14216157]
[1741290965901,6.9309,144.28,144.25,0.14216157]
[1741290966108,6.9309,144.28,144.23,28.97428051]
[1741290966336,28.83211894,144.27,144.22,82.1]
[1741290966520,28.83211894,144.26,144.22,82.1]
[1741290966832,24.2583,144.28,144.2,174.41001894]
[1741290966833,28.83211894,144.24,144.2,8.2799]
[1741290967039,28.83211894,144.25,144.2,37.11201894]